[Event "Titled Tuesday Blitz February 07 Late 2023"]
[White "Dzierzak, Radoslaw"]
[Black "Averjanov, Alexey"]
[WhiteFideId "1161407"]
[BlackFideId "14109867"]
[WhiteElo "2220"]
[BlackElo "2399"]
[Result "1/2-1/2"]
[Round "06"]
[TimeControl "180+2"]
[Date "2023.02.07"]
[WhiteClock "0:00:07"]
[BlackClock "0:01:28"]

1. e4 {[%clk 0:02:50]}  c6 {[%clk 0:03:00]} 2. Nf3 {[%clk 0:02:50]}  d5 {[%clk 0:03:00]} 3. Nc3 {[%clk 0:02:51]}  Bg4 {[%clk 0:02:59]} 4. d4 {[%clk 0:02:50]}  dxe4 {[%clk 0:02:58]} 5. Nxe4 {[%clk 0:02:50]}  Nd7 {[%clk 0:02:58]} 6. h3 {[%clk 0:02:48]}  Bh5 {[%clk 0:02:58]} 7. Ng3 {[%clk 0:02:42]}  Bg6 {[%clk 0:02:58]} 8. Nh4 {[%clk 0:02:28]}  e6 {[%clk 0:02:58]} 9. Nxg6 {[%clk 0:02:28]}  hxg6 {[%clk 0:02:59]} 10. Bd3 {[%clk 0:02:25]}  Ngf6 {[%clk 0:02:59]} 11. c3 {[%clk 0:02:24]}  Bd6 {[%clk 0:02:57]} 12. O-O {[%clk 0:02:12]}  Qc7 {[%clk 0:02:57]} 13. Ne4 {[%clk 0:01:57]}  Nxe4 {[%clk 0:02:56]} 14. Bxe4 {[%clk 0:01:57]}  Nf6 {[%clk 0:02:57]} 15. Bf3 {[%clk 0:01:57]}  O-O {[%clk 0:02:55]} 16. Qc2 {[%clk 0:01:51]}  Rad8 {[%clk 0:02:54]} 17. Bg5 {[%clk 0:01:50]}  Rd7 {[%clk 0:02:55]} 18. Rfe1 {[%clk 0:01:46]}  Rfd8 {[%clk 0:02:53]} 19. b4 {[%clk 0:01:34]}  Bf4 {[%clk 0:02:52]} 20. Bxf6 {[%clk 0:01:32]}  gxf6 {[%clk 0:02:52]} 21. h4 {[%clk 0:01:21]}  Kg7 {[%clk 0:02:50]} 22. g3 {[%clk 0:01:18]}  Bd6 {[%clk 0:02:44]} 23. Kg2 {[%clk 0:01:16]}  f5 {[%clk 0:02:44]} 24. a3 {[%clk 0:01:12]}  Be7 {[%clk 0:02:44]} 25. Rad1 {[%clk 0:01:07]}  Bf6 {[%clk 0:02:44]} 26. Re3 {[%clk 0:01:02]}  b6 {[%clk 0:02:44]} 27. Red3 {[%clk 0:01:00]}  Rd6 {[%clk 0:02:43]} 28. a4 {[%clk 0:00:57]}  Qd7 {[%clk 0:02:43]} 29. a5 {[%clk 0:00:53]}  c5 {[%clk 0:02:37]} 30. bxc5 {[%clk 0:00:49]}  bxc5 {[%clk 0:02:37]} 31. d5 {[%clk 0:00:49]}  exd5 {[%clk 0:02:29]} 32. Rxd5 {[%clk 0:00:48]}  Rxd5 {[%clk 0:02:26]} 33. Rxd5 {[%clk 0:00:48]}  Qc7 {[%clk 0:02:27]} 34. Rxd8 {[%clk 0:00:40]}  Qxd8 {[%clk 0:02:28]} 35. a6 {[%clk 0:00:39]}  Qa5 {[%clk 0:02:28]} 36. Bb7 {[%clk 0:00:28]}  Bxc3 {[%clk 0:02:26]} 37. Qe2 {[%clk 0:00:13]}  Bd4 {[%clk 0:02:22]} 38. Bd5 {[%clk 0:00:13]}  Qc7 {[%clk 0:02:19]} 39. Qb5 {[%clk 0:00:11]}  f4 {[%clk 0:02:09]} 40. Qb7 {[%clk 0:00:11]}  Be5 {[%clk 0:02:08]} 41. Qxc7 {[%clk 0:00:10]}  Bxc7 {[%clk 0:02:09]} 42. g4 {[%clk 0:00:10]}  Kf6 {[%clk 0:02:08]} 43. Kf3 {[%clk 0:00:10]}  Be5 {[%clk 0:02:01]} 44. Ke4 {[%clk 0:00:09]}  Bd6 {[%clk 0:01:58]} 45. f3 {[%clk 0:00:09]}  Ke7 {[%clk 0:01:56]} 46. h5 {[%clk 0:00:09]}  gxh5 {[%clk 0:01:55]} 47. gxh5 {[%clk 0:00:09]}  Kf6 {[%clk 0:01:55]} 48. h6 {[%clk 0:00:08]}  Kg6 {[%clk 0:01:55]} 49. h7 {[%clk 0:00:08]}  Kxh7 {[%clk 0:01:52]} 50. Bxf7 {[%clk 0:00:07]}  Kg7 {[%clk 0:01:52]} 51. Bc4 {[%clk 0:00:07]}  Kf6 {[%clk 0:01:52]} 52. Kd5 {[%clk 0:00:08]}  Be7 {[%clk 0:01:47]} 53. Kc6 {[%clk 0:00:08]}  Ke5 {[%clk 0:01:42]} 54. Kb7 {[%clk 0:00:08]}  Kd4 {[%clk 0:01:43]} 55. Kxa7 {[%clk 0:00:04]}  Kxc4 {[%clk 0:01:41]} 56. Kb7 {[%clk 0:00:04]}  Kd3 {[%clk 0:01:39]} 57. a7 {[%clk 0:00:04]}  c4 {[%clk 0:01:40]} 58. a8=Q {[%clk 0:00:05]}  c3 {[%clk 0:01:40]} 59. Qe8 {[%clk 0:00:04]}  Ba3 {[%clk 0:01:33]} 60. Qe4+ {[%clk 0:00:03]}  Kd2 {[%clk 0:01:33]} 61. Qxf4+ {[%clk 0:00:04]}  Ke2 {[%clk 0:01:32]} 62. Qe4+ {[%clk 0:00:04]}  Kd2 {[%clk 0:01:33]} 63. Qd4+ {[%clk 0:00:04]}  Kc2 {[%clk 0:01:33]} 64. Qa4+ {[%clk 0:00:05]}  Kb2 {[%clk 0:01:33]} 65. Qb5+ {[%clk 0:00:05]}  Kc1 {[%clk 0:01:31]} 66. Qf1+ {[%clk 0:00:05]}  Kd2 {[%clk 0:01:31]} 67. Qf2+ {[%clk 0:00:05]}  Kd3 {[%clk 0:01:32]} 68. Qf1+ {[%clk 0:00:04]}  Kd2 {[%clk 0:01:32]} 69. Qg2+ {[%clk 0:00:03]}  Kd3 {[%clk 0:01:31]} 70. Qg6+ {[%clk 0:00:02]}  Kd2 {[%clk 0:01:31]} 71. f4 {[%clk 0:00:03]}  c2 {[%clk 0:01:31]} 72. Qg2+ {[%clk 0:00:03]}  Kd1 {[%clk 0:01:31]} 73. Qg1+ {[%clk 0:00:04]}  Kd2 {[%clk 0:01:31]} 74. f5 {[%clk 0:00:04]}  c1=Q {[%clk 0:01:27]} 75. Qxc1+ {[%clk 0:00:04]}  Kxc1 {[%clk 0:01:27]} 76. f6 {[%clk 0:00:04]}  Kd2 {[%clk 0:01:28]} 77. f7 {[%clk 0:00:03]}  Ke3 {[%clk 0:01:28]} 78. Kc7 {[%clk 0:00:04]}  Ke4 {[%clk 0:01:28]} 79. Kd7 {[%clk 0:00:05]}  Kf5 {[%clk 0:01:28]} 80. Ke8 {[%clk 0:00:06]}  Kg6 {[%clk 0:01:28]} 81. f8=Q {[%clk 0:00:07]}  Bxf8 {[%clk 0:01:28]} 1/2-1/2


[Site "https://www.chess.com"]

[Event "Titled Tuesday Blitz February 07 Late 2023"]
[White "Sielecki, Christof"]
[Black "Nilsen, Tobias Lang"]
[WhiteFideId "4620437"]
[BlackFideId "1521624"]
[WhiteElo "2419"]
[BlackElo "2247"]
[Result "1-0"]
[Round "06"]
[TimeControl "180+2"]
[Date "2023.02.07"]
[WhiteClock "0:00:30"]
[BlackClock "0:00:27"]

1. e4 {[%clk 0:03:00]}  e6 {[%clk 0:02:58]} 2. d4 {[%clk 0:03:00]}  d5 {[%clk 0:02:59]} 3. Nd2 {[%clk 0:03:01]}  a6 {[%clk 0:02:59]} 4. Ngf3 {[%clk 0:02:59]}  Nf6 {[%clk 0:02:59]} 5. Bd3 {[%clk 0:02:57]}  c5 {[%clk 0:02:59]} 6. exd5 {[%clk 0:02:55]}  exd5 {[%clk 0:02:59]} 7. dxc5 {[%clk 0:02:55]}  Bxc5 {[%clk 0:02:59]} 8. Nb3 {[%clk 0:02:54]}  Bb6 {[%clk 0:02:59]} 9. Qe2+ {[%clk 0:02:53]}  Be6 {[%clk 0:01:39]} 10. Be3 {[%clk 0:02:50]}  O-O {[%clk 0:01:18]} 11. O-O {[%clk 0:02:46]}  Bc7 {[%clk 0:01:17]} 12. h3 {[%clk 0:02:28]}  Nc6 {[%clk 0:01:16]} 13. Nbd4 {[%clk 0:02:26]}  Bc8 {[%clk 0:01:10]} 14. c3 {[%clk 0:02:21]}  Re8 {[%clk 0:01:09]} 15. Rfe1 {[%clk 0:02:15]}  Qd6 {[%clk 0:01:09]} 16. Qc2 {[%clk 0:02:06]}  Bd7 {[%clk 0:01:02]} 17. Re2 {[%clk 0:01:44]}  Rac8 {[%clk 0:01:01]} 18. Rae1 {[%clk 0:01:43]}  Nb4 {[%clk 0:00:52]} 19. cxb4 {[%clk 0:01:31]}  Ne4 {[%clk 0:00:40]} 20. Bd2 {[%clk 0:01:00]}  Bb6 {[%clk 0:00:36]} 21. Qd1 {[%clk 0:00:54]}  Bc7 {[%clk 0:00:32]} 22. Bxe4 {[%clk 0:00:50]}  dxe4 {[%clk 0:00:32]} 23. Rxe4 {[%clk 0:00:49]}  Rxe4 {[%clk 0:00:33]} 24. Rxe4 {[%clk 0:00:50]}  Bc6 {[%clk 0:00:33]} 25. Nxc6 {[%clk 0:00:36]}  bxc6 {[%clk 0:00:32]} 26. Qe2 {[%clk 0:00:33]}  f5 {[%clk 0:00:27]} 27. Re8+ {[%clk 0:00:30]} 1-0


[Site "https://www.chess.com"]

[Event "Titled Tuesday Blitz February 07 Late 2023"]
[White "Chor, Kevin"]
[Black "Herman, Daniel"]
[WhiteFideId "2090740"]
[BlackFideId "30935008"]
[WhiteElo "1944"]
[BlackElo "1956"]
[Result "0-1"]
[Round "06"]
[TimeControl "180+2"]
[Date "2023.02.07"]
[WhiteClock "0:00:03"]
[BlackClock "0:00:05"]

1. e4 {[%clk 0:02:59]}  d6 {[%clk 0:02:58]} 2. d4 {[%clk 0:02:59]}  Nf6 {[%clk 0:02:58]} 3. Nc3 {[%clk 0:02:59]}  e5 {[%clk 0:02:58]} 4. f4 {[%clk 0:02:57]}  exd4 {[%clk 0:02:55]} 5. Qxd4 {[%clk 0:02:58]}  Nc6 {[%clk 0:02:47]} 6. Qd3 {[%clk 0:02:52]}  Be7 {[%clk 0:02:42]} 7. Nf3 {[%clk 0:02:42]}  O-O {[%clk 0:02:41]} 8. Be3 {[%clk 0:02:41]}  d5 {[%clk 0:02:33]} 9. e5 {[%clk 0:02:20]}  Nb4 {[%clk 0:02:29]} 10. Qe2 {[%clk 0:02:19]}  Ng4 {[%clk 0:02:20]} 11. O-O-O {[%clk 0:02:07]}  Nxe3 {[%clk 0:02:07]} 12. Qxe3 {[%clk 0:02:08]}  Bf5 {[%clk 0:02:02]} 13. Nd4 {[%clk 0:02:05]}  Bg4 {[%clk 0:01:52]} 14. Be2 {[%clk 0:02:02]}  Bxe2 {[%clk 0:01:46]} 15. Qxe2 {[%clk 0:02:02]}  c5 {[%clk 0:01:44]} 16. Nf5 {[%clk 0:02:01]}  d4 {[%clk 0:01:35]} 17. Ne4 {[%clk 0:01:46]}  Nxa2+ {[%clk 0:01:24]} 18. Kb1 {[%clk 0:01:39]}  Nb4 {[%clk 0:01:19]} 19. Qg4 {[%clk 0:01:33]}  g6 {[%clk 0:01:18]} 20. Nxe7+ {[%clk 0:01:31]}  Qxe7 {[%clk 0:01:19]} 21. Nf6+ {[%clk 0:01:30]}  Kg7 {[%clk 0:01:03]} 22. Qh4 {[%clk 0:01:24]}  Rh8 {[%clk 0:01:00]} 23. c3 {[%clk 0:00:52]}  Nd5 {[%clk 0:00:56]} 24. cxd4 {[%clk 0:00:40]}  Nxf6 {[%clk 0:00:53]} 25. exf6+ {[%clk 0:00:40]}  Qxf6 {[%clk 0:00:54]} 26. Qxf6+ {[%clk 0:00:39]}  Kxf6 {[%clk 0:00:55]} 27. dxc5 {[%clk 0:00:39]}  Rad8 {[%clk 0:00:51]} 28. Kc2 {[%clk 0:00:31]}  Rhe8 {[%clk 0:00:49]} 29. Rxd8 {[%clk 0:00:28]}  Rxd8 {[%clk 0:00:49]} 30. Kc3 {[%clk 0:00:29]}  Kf5 {[%clk 0:00:46]} 31. g3 {[%clk 0:00:29]}  Kg4 {[%clk 0:00:42]} 32. Ra1 {[%clk 0:00:27]}  a6 {[%clk 0:00:40]} 33. Re1 {[%clk 0:00:27]}  Rd7 {[%clk 0:00:39]} 34. b4 {[%clk 0:00:23]}  Kf3 {[%clk 0:00:30]} 35. Kc4 {[%clk 0:00:21]}  h5 {[%clk 0:00:26]} 36. b5 {[%clk 0:00:19]}  axb5+ {[%clk 0:00:24]} 37. Kxb5 {[%clk 0:00:20]}  h4 {[%clk 0:00:23]} 38. gxh4 {[%clk 0:00:18]}  Kxf4 {[%clk 0:00:23]} 39. Kb6 {[%clk 0:00:18]}  Kg4 {[%clk 0:00:20]} 40. Re4+ {[%clk 0:00:16]}  Kh3 {[%clk 0:00:16]} 41. Rb4 {[%clk 0:00:16]}  f5 {[%clk 0:00:14]} 42. Ka7 {[%clk 0:00:12]}  Kxh2 {[%clk 0:00:08]} 43. Rxb7 {[%clk 0:00:11]}  Rd1 {[%clk 0:00:08]} 44. c6 {[%clk 0:00:09]}  Rc1 {[%clk 0:00:08]} 45. c7 {[%clk 0:00:07]}  f4 {[%clk 0:00:07]} 46. Kb8 {[%clk 0:00:04]}  f3 {[%clk 0:00:06]} 47. Rb2+ {[%clk 0:00:01]}  Kg3 {[%clk 0:00:05]} 48. c8=Q {[%clk 0:00:02]}  Rxc8+ {[%clk 0:00:04]} 49. Kxc8 {[%clk 0:00:03]}  f2 {[%clk 0:00:04]} 50. Rb1 {[%clk 0:00:04]}  Kxh4 {[%clk 0:00:05]} 51. Kd7 {[%clk 0:00:04]}  g5 {[%clk 0:00:05]} 52. Ke6 {[%clk 0:00:04]}  g4 {[%clk 0:00:06]} 53. Kf5 {[%clk 0:00:04]}  g3 {[%clk 0:00:07]} 54. Kf4 {[%clk 0:00:05]}  g2 {[%clk 0:00:06]} 55. Kf3 {[%clk 0:00:03]}  f1=Q+ {[%clk 0:00:05]} 0-1


[Site "https://www.chess.com"]

[Event "Titled Tuesday Blitz February 07 Late 2023"]
[White "Ortega Amarelle, Mariano"]
[Black "Kalajzic, Ivan"]
[WhiteFideId "3504301"]
[BlackFideId "14506378"]
[WhiteElo "2472"]
[BlackElo "2062"]
[Result "0-1"]
[Round "06"]
[TimeControl "180+2"]
[Date "2023.02.07"]
[WhiteClock "0:00:01"]
[BlackClock "0:00:12"]

1. e4 {[%clk 0:02:53]}  Nc6 {[%clk 0:02:56]} 2. Nf3 {[%clk 0:02:52]}  d6 {[%clk 0:02:56]} 3. d4 {[%clk 0:02:52]}  Bg4 {[%clk 0:02:56]} 4. Be2 {[%clk 0:02:50]}  e5 {[%clk 0:02:56]} 5. dxe5 {[%clk 0:02:38]}  dxe5 {[%clk 0:02:55]} 6. Nbd2 {[%clk 0:02:35]}  Bc5 {[%clk 0:02:52]} 7. c3 {[%clk 0:02:34]}  Nf6 {[%clk 0:02:50]} 8. b4 {[%clk 0:02:32]}  Bb6 {[%clk 0:02:49]} 9. b5 {[%clk 0:02:25]}  Bxf3 {[%clk 0:02:33]} 10. Bxf3 {[%clk 0:01:55]}  Ne7 {[%clk 0:02:23]} 11. Qc2 {[%clk 0:01:46]}  Ng6 {[%clk 0:02:07]} 12. O-O {[%clk 0:01:45]}  O-O {[%clk 0:02:07]} 13. Ba3 {[%clk 0:01:40]}  Re8 {[%clk 0:02:06]} 14. Rad1 {[%clk 0:01:30]}  Qc8 {[%clk 0:02:01]} 15. c4 {[%clk 0:01:27]}  Bd4 {[%clk 0:01:57]} 16. Nb3 {[%clk 0:01:26]}  Nh4 {[%clk 0:01:30]} 17. Be2 {[%clk 0:01:24]}  c5 {[%clk 0:01:09]} 18. bxc6 {[%clk 0:01:07]}  Qxc6 {[%clk 0:01:08]} 19. Nxd4 {[%clk 0:01:07]}  exd4 {[%clk 0:01:08]} 20. f3 {[%clk 0:01:00]}  Rad8 {[%clk 0:01:03]} 21. Bd3 {[%clk 0:00:53]}  Ng6 {[%clk 0:00:54]} 22. Rfe1 {[%clk 0:00:39]}  Nf4 {[%clk 0:00:52]} 23. Bf1 {[%clk 0:00:28]}  g5 {[%clk 0:00:33]} 24. g3 {[%clk 0:00:27]}  Ng6 {[%clk 0:00:32]} 25. c5 {[%clk 0:00:21]}  Ne5 {[%clk 0:00:31]} 26. Bg2 {[%clk 0:00:17]}  g4 {[%clk 0:00:28]} 27. f4 {[%clk 0:00:16]}  Nf3+ {[%clk 0:00:28]} 28. Bxf3 {[%clk 0:00:16]}  gxf3 {[%clk 0:00:28]} 29. e5 {[%clk 0:00:16]}  Ng4 {[%clk 0:00:23]} 30. Rf1 {[%clk 0:00:16]}  f2+ {[%clk 0:00:23]} 31. Rxf2 {[%clk 0:00:16]}  Nxf2 {[%clk 0:00:23]} 32. Qxf2 {[%clk 0:00:16]}  d3 {[%clk 0:00:22]} 33. Rd2 {[%clk 0:00:15]}  Qe4 {[%clk 0:00:21]} 34. Bb2 {[%clk 0:00:13]}  b6 {[%clk 0:00:19]} 35. cxb6 {[%clk 0:00:12]}  axb6 {[%clk 0:00:19]} 36. f5 {[%clk 0:00:13]}  Rc8 {[%clk 0:00:17]} 37. e6 {[%clk 0:00:09]}  Rc2 {[%clk 0:00:15]} 38. exf7+ {[%clk 0:00:05]}  Kxf7 {[%clk 0:00:16]} 39. g4 {[%clk 0:00:02]}  Rxd2 {[%clk 0:00:15]} 40. Qxd2 {[%clk 0:00:02]}  Qxg4+ {[%clk 0:00:15]} 41. Kf1 {[%clk 0:00:03]}  Qxf5+ {[%clk 0:00:13]} 42. Kg1 {[%clk 0:00:03]}  Re2 {[%clk 0:00:13]} 43. Qc3 {[%clk 0:00:01]}  Qf2+ {[%clk 0:00:12]} 0-1


[Site "https://www.chess.com"]

[Event "Titled Tuesday Blitz February 07 Late 2023"]
[White "Jenkins, Drake"]
[Black "Petrovic, Aleksa"]
[WhiteFideId "2022397"]
[BlackFideId "967629"]
[WhiteElo "2130"]
[BlackElo "2332"]
[Result "0-1"]
[Round "06"]
[TimeControl "180+2"]
[Date "2023.02.07"]
[WhiteClock "0:00:01"]
[BlackClock "0:00:23"]

1. Nf3 {[%clk 0:03:00]}  Nf6 {[%clk 0:02:59]} 2. c4 {[%clk 0:03:00]}  e6 {[%clk 0:02:58]} 3. g3 {[%clk 0:03:00]}  b6 {[%clk 0:02:58]} 4. Bg2 {[%clk 0:03:01]}  Bb7 {[%clk 0:02:58]} 5. O-O {[%clk 0:03:01]}  c5 {[%clk 0:02:59]} 6. Nc3 {[%clk 0:03:00]}  a6 {[%clk 0:02:58]} 7. d4 {[%clk 0:03:01]}  cxd4 {[%clk 0:02:59]} 8. Qxd4 {[%clk 0:03:01]}  d6 {[%clk 0:02:59]} 9. b3 {[%clk 0:02:52]}  Nbd7 {[%clk 0:02:59]} 10. Ba3 {[%clk 0:02:36]}  Qc7 {[%clk 0:02:49]} 11. Rfd1 {[%clk 0:02:21]}  Nc5 {[%clk 0:02:47]} 12. b4 {[%clk 0:02:13]}  Ncd7 {[%clk 0:02:42]} 13. b5 {[%clk 0:02:11]}  Nc5 {[%clk 0:02:28]} 14. bxa6 {[%clk 0:02:09]}  Bxa6 {[%clk 0:02:29]} 15. Nd2 {[%clk 0:01:44]}  Rd8 {[%clk 0:02:21]} 16. Nb5 {[%clk 0:01:42]}  Bxb5 {[%clk 0:02:19]} 17. cxb5 {[%clk 0:01:43]}  Be7 {[%clk 0:02:18]} 18. Bc6+ {[%clk 0:01:42]}  Kf8 {[%clk 0:02:12]} 19. e4 {[%clk 0:01:26]}  Nfd7 {[%clk 0:02:06]} 20. Rac1 {[%clk 0:01:06]}  Ne5 {[%clk 0:02:01]} 21. Kg2 {[%clk 0:00:57]}  Nxc6 {[%clk 0:01:53]} 22. bxc6 {[%clk 0:00:56]}  Qxc6 {[%clk 0:01:53]} 23. f3 {[%clk 0:00:51]}  Bf6 {[%clk 0:01:38]} 24. Qc4 {[%clk 0:00:47]}  h5 {[%clk 0:01:31]} 25. h4 {[%clk 0:00:37]}  g5 {[%clk 0:01:29]} 26. hxg5 {[%clk 0:00:32]}  Bxg5 {[%clk 0:01:30]} 27. Bxc5 {[%clk 0:00:23]}  bxc5 {[%clk 0:01:24]} 28. f4 {[%clk 0:00:23]}  Bf6 {[%clk 0:01:23]} 29. Nf3 {[%clk 0:00:17]}  h4 {[%clk 0:01:19]} 30. g4 {[%clk 0:00:17]}  h3+ {[%clk 0:01:18]} 31. Kg3 {[%clk 0:00:16]}  Rb8 {[%clk 0:01:00]} 32. Rh1 {[%clk 0:00:15]}  h2 {[%clk 0:00:54]} 33. Rxh2 {[%clk 0:00:14]}  Rxh2 {[%clk 0:00:53]} 34. Nxh2 {[%clk 0:00:14]}  Rb2 {[%clk 0:00:52]} 35. Rc2 {[%clk 0:00:12]}  Rxc2 {[%clk 0:00:50]} 36. Qxc2 {[%clk 0:00:13]}  d5 {[%clk 0:00:51]} 37. e5 {[%clk 0:00:11]}  Be7 {[%clk 0:00:50]} 38. Nf3 {[%clk 0:00:11]}  c4 {[%clk 0:00:45]} 39. Qh7 {[%clk 0:00:10]}  Ke8 {[%clk 0:00:34]} 40. g5 {[%clk 0:00:09]}  c3 {[%clk 0:00:33]} 41. Nd4 {[%clk 0:00:07]}  Qc5 {[%clk 0:00:30]} 42. Nc2 {[%clk 0:00:07]}  Qg1+ {[%clk 0:00:29]} 43. Kf3 {[%clk 0:00:06]}  d4 {[%clk 0:00:29]} 44. Qd3 {[%clk 0:00:04]}  Qh1+ {[%clk 0:00:29]} 45. Ke2 {[%clk 0:00:03]}  Qg2+ {[%clk 0:00:29]} 46. Ke1 {[%clk 0:00:01]}  Bc5 {[%clk 0:00:27]} 47. Qb5+ {[%clk 0:00:01]}  Kd8 {[%clk 0:00:27]} 48. Qxc5 {[%clk 0:00:01]}  Qd2+ {[%clk 0:00:23]} 0-1


[Site "https://www.chess.com"]

[Event "Titled Tuesday Blitz February 07 Late 2023"]
[White "Przybylski, Wojciech"]
[Black "Kovalevsky, Stanislav"]
[WhiteFideId "1117599"]
[BlackFideId "13508598"]
[WhiteElo "2321"]
[BlackElo "2237"]
[Result "1-0"]
[Round "06"]
[TimeControl "180+2"]
[Date "2023.02.07"]
[WhiteClock "0:00:07"]
[BlackClock "0:00:19"]

1. e4 {[%clk 0:03:00]}  e6 {[%clk 0:03:00]} 2. d4 {[%clk 0:02:59]}  d5 {[%clk 0:03:01]} 3. Nc3 {[%clk 0:03:00]}  dxe4 {[%clk 0:03:01]} 4. Nxe4 {[%clk 0:03:00]}  Nf6 {[%clk 0:03:02]} 5. Bg5 {[%clk 0:02:57]}  Be7 {[%clk 0:03:01]} 6. Bxf6 {[%clk 0:02:57]}  gxf6 {[%clk 0:03:02]} 7. Nc3 {[%clk 0:02:56]}  b6 {[%clk 0:03:01]} 8. Qf3 {[%clk 0:02:54]}  c6 {[%clk 0:03:01]} 9. O-O-O {[%clk 0:02:53]}  Bb7 {[%clk 0:03:01]} 10. g4 {[%clk 0:02:44]}  Qd7 {[%clk 0:02:59]} 11. Bg2 {[%clk 0:02:43]}  Na6 {[%clk 0:02:58]} 12. Nge2 {[%clk 0:02:37]}  O-O-O {[%clk 0:02:56]} 13. Ng3 {[%clk 0:02:27]}  c5 {[%clk 0:02:53]} 14. d5 {[%clk 0:02:04]}  Nb4 {[%clk 0:01:51]} 15. dxe6 {[%clk 0:01:54]}  Qxd1+ {[%clk 0:01:49]} 16. Qxd1 {[%clk 0:01:19]}  Rxd1+ {[%clk 0:01:46]} 17. Rxd1 {[%clk 0:01:17]}  Bxg2 {[%clk 0:01:45]} 18. Nf5 {[%clk 0:01:16]}  Nc6 {[%clk 0:01:28]} 19. exf7 {[%clk 0:00:57]}  Rf8 {[%clk 0:01:15]} 20. Nb5 {[%clk 0:00:54]}  Bf3 {[%clk 0:01:05]} 21. Nxe7+ {[%clk 0:00:32]}  Nxe7 {[%clk 0:00:56]} 22. Re1 {[%clk 0:00:19]}  Ng6 {[%clk 0:00:41]} 23. Re6 {[%clk 0:00:10]}  a6 {[%clk 0:00:31]} 24. Nd6+ {[%clk 0:00:06]}  Kd7 {[%clk 0:00:31]} 25. Rxf6 {[%clk 0:00:06]}  Bxg4 {[%clk 0:00:27]} 26. Nc4 {[%clk 0:00:06]}  b5 {[%clk 0:00:20]} 27. Nb6+ {[%clk 0:00:06]}  Ke7 {[%clk 0:00:20]} 28. Nd5+ {[%clk 0:00:06]}  Kd7 {[%clk 0:00:20]} 29. Rxa6 {[%clk 0:00:03]}  Be6 {[%clk 0:00:19]} 30. Nf6+ {[%clk 0:00:02]}  Ke7 {[%clk 0:00:20]} 31. Ne4 {[%clk 0:00:02]}  Rxf7 {[%clk 0:00:20]} 32. Nxc5 {[%clk 0:00:02]}  Rxf2 {[%clk 0:00:20]} 33. Rxe6+ {[%clk 0:00:02]}  Kf7 {[%clk 0:00:20]} 34. Re3 {[%clk 0:00:02]}  Nf4 {[%clk 0:00:21]} 35. b3 {[%clk 0:00:02]}  Rxh2 {[%clk 0:00:21]} 36. a4 {[%clk 0:00:03]}  Nd5 {[%clk 0:00:21]} 37. Rd3 {[%clk 0:00:02]}  Nb4 {[%clk 0:00:22]} 38. Rf3+ {[%clk 0:00:03]}  Ke7 {[%clk 0:00:21]} 39. Re3+ {[%clk 0:00:03]}  Kd6 {[%clk 0:00:21]} 40. Ne4+ {[%clk 0:00:03]}  Kd5 {[%clk 0:00:21]} 41. Nd2 {[%clk 0:00:04]}  Kd4 {[%clk 0:00:21]} 42. Rg3 {[%clk 0:00:04]}  bxa4 {[%clk 0:00:19]} 43. bxa4 {[%clk 0:00:04]}  Na2+ {[%clk 0:00:20]} 44. Kb2 {[%clk 0:00:04]}  Rxd2 {[%clk 0:00:19]} 45. Kxa2 {[%clk 0:00:04]}  Rxc2+ {[%clk 0:00:19]} 46. Kb3 {[%clk 0:00:05]}  Rc7 {[%clk 0:00:18]} 47. Rg4+ {[%clk 0:00:04]}  Kd3 {[%clk 0:00:19]} 48. Rg3+ {[%clk 0:00:04]}  Kd4 {[%clk 0:00:19]} 49. Rg4+ {[%clk 0:00:05]}  Ke5 {[%clk 0:00:20]} 50. Rh4 {[%clk 0:00:05]}  Kf5 {[%clk 0:00:20]} 51. Kb4 {[%clk 0:00:05]}  Ke5 {[%clk 0:00:20]} 52. Kb5 {[%clk 0:00:05]}  Kd5 {[%clk 0:00:19]} 53. a5 {[%clk 0:00:04]}  Rb7+ {[%clk 0:00:19]} 54. Ka6 {[%clk 0:00:05]}  Rf7 {[%clk 0:00:20]} 55. Kb6 {[%clk 0:00:05]}  Rf6+ {[%clk 0:00:19]} 56. Kb5 {[%clk 0:00:05]}  Rf7 {[%clk 0:00:19]} 57. a6 {[%clk 0:00:05]}  Kd6 {[%clk 0:00:20]} 58. Kb6 {[%clk 0:00:05]}  Rg7 {[%clk 0:00:18]} 59. a7 {[%clk 0:00:05]}  Rg8 {[%clk 0:00:18]} 60. Rxh7 {[%clk 0:00:05]}  Ke6 {[%clk 0:00:18]} 61. Rb7 {[%clk 0:00:05]}  Kd6 {[%clk 0:00:17]} 62. Rb8 {[%clk 0:00:05]}  Rg1 {[%clk 0:00:17]} 63. a8=Q {[%clk 0:00:05]}  Rb1+ {[%clk 0:00:18]} 64. Ka5 {[%clk 0:00:05]}  Ra1+ {[%clk 0:00:18]} 65. Kb4 {[%clk 0:00:06]}  Rxa8 {[%clk 0:00:19]} 66. Rxa8 {[%clk 0:00:07]} 1-0


[Site "https://www.chess.com"]

[Event "Titled Tuesday Blitz February 07 Late 2023"]
[White "Yeritsyan, Hayk"]
[Black "Harish, Neeraj"]
[WhiteFideId "13307320"]
[BlackFideId "30958130"]
[WhiteElo "2241"]
[BlackElo "2232"]
[Result "1-0"]
[Round "06"]
[TimeControl "180+2"]
[Date "2023.02.07"]
[WhiteClock "0:01:48"]
[BlackClock "0:00:12"]

1. d4 {[%clk 0:02:36]}  d5 {[%clk 0:02:54]} 2. Nf3 {[%clk 0:02:36]}  Nf6 {[%clk 0:02:54]} 3. e3 {[%clk 0:02:37]}  c5 {[%clk 0:02:49]} 4. Bd3 {[%clk 0:02:37]}  Nc6 {[%clk 0:02:44]} 5. c3 {[%clk 0:02:36]}  Bg4 {[%clk 0:02:34]} 6. Nbd2 {[%clk 0:02:35]}  e6 {[%clk 0:02:22]} 7. Qa4 {[%clk 0:02:33]}  Bd6 {[%clk 0:01:35]} 8. Ne5 {[%clk 0:02:21]}  c4 {[%clk 0:00:45]} 9. Nxc6 {[%clk 0:02:15]}  bxc6 {[%clk 0:00:44]} 10. Qxc6+ {[%clk 0:02:14]}  Ke7 {[%clk 0:00:43]} 11. Bb1 {[%clk 0:02:12]}  Rc8 {[%clk 0:00:41]} 12. Qa4 {[%clk 0:02:11]}  Qb6 {[%clk 0:00:39]} 13. e4 {[%clk 0:02:02]}  dxe4 {[%clk 0:00:38]} 14. Nxe4 {[%clk 0:02:02]}  Nxe4 {[%clk 0:00:29]} 15. Bxe4 {[%clk 0:02:03]}  Rhd8 {[%clk 0:00:20]} 16. O-O {[%clk 0:01:59]}  Kf8 {[%clk 0:00:19]} 17. Re1 {[%clk 0:01:48]}  Kg8 {[%clk 0:00:18]} 18. Qc2 {[%clk 0:01:48]}  h6 {[%clk 0:00:15]} 19. h3 {[%clk 0:01:48]}  Bh5 {[%clk 0:00:14]} 20. g4 {[%clk 0:01:48]}  Bg6 {[%clk 0:00:14]} 21. Bxg6 {[%clk 0:01:48]}  fxg6 {[%clk 0:00:15]} 22. Qxg6 {[%clk 0:01:49]}  Re8 {[%clk 0:00:12]} 23. Bxh6 {[%clk 0:01:48]} 1-0


[Site "https://www.chess.com"]